fUSD/lending_fUSD_20250818
["ID","MTS","AMOUNT","RATE_DAILY","PERIOD"]
[380020970,1755479457339,-286.765283,0.00013698,2]
[380020971,1755479457348,-519.82,0.00013698,2]
[380020972,1755479457357,-519.82,0.00013698,2]
[380020973,1755479457367,-519.82,0.00013698,2]
[380020974,1755479457376,-519.89,0.00013698,2]
[380020975,1755479457385,-400.0,0.00013698,2]
[380020976,1755479457394,-668.73,0.00013698,2]
[380020977,1755479457404,-151.0,0.00013698,2]
[380020978,1755479457412,-400.0,0.00013698,2]
[380020979,1755479457421,-400.0,0.00013698,2]
[380020980,1755479457431,-400.0,0.00013698,2]
[380020981,1755479457440,-250.0,0.00013698,2]
[380020982,1755479457449,-400.0,0.00013698,2]
[380020983,1755479457458,-400.0,0.00013698,2]
[380020984,1755479457467,-1060.31,0.00013698,2]
[380020985,1755479457477,-1788.61,0.00013698,2]
[380020986,1755479457486,-1348.37,0.00013698,2]
[380020987,1755479457495,-419.55,0.00013698,2]
[380020988,1755479457504,-1378.52,0.00013698,2]
[380020989,1755479457513,-400.0,0.00013698,2]
[380020990,1755479457523,-2098.04,0.00013698,2]
[380020991,1755479457532,-503.31253869,0.00013698,2]
[380020992,1755479457542,-400.0,0.00013698,2]
[380020993,1755479457551,-151.0,0.00013698,2]
[380020994,1755479457560,-400.0,0.00013698,2]
[380020995,1755479457569,-151.0,0.00013698,2]
[380020996,1755479457578,-400.0,0.00013698,2]
[380020997,1755479457587,-400.0,0.00013698,2]
[380020998,1755479457596,-400.0,0.00013698,2]
[380020999,1755479457605,-400.0,0.00013698,2]
[380021000,1755479457614,-2291.98,0.00013698,2]
[380021001,1755479457623,-400.0,0.00013698,2]
[380021002,1755479457632,-1162.23,0.00013698,2]
[380021003,1755479457641,-501.09,0.00013698,2]
[380021004,1755479457650,-400.0,0.00013698,2]
[380021005,1755479457659,-400.0,0.00013698,2]
[380021006,1755479457668,-526.57,0.00013698,2]
[380021007,1755479457677,-1112.5,0.00013698,2]
[380021008,1755479457686,-400.0,0.00013698,2]
[380021009,1755479457695,-1784.95,0.00013698,2]
[380021010,1755479457704,-641.78,0.00013698,2]
[380021011,1755479457713,-3588.51,0.00013698,2]
[380021012,1755479457722,-400.0,0.00013698,2]
[380021013,1755479457732,-1004.5,0.00013698,2]
[380021014,1755479457741,-400.0,0.00013698,2]
[380021015,1755479457750,-400.0,0.00013698,2]
[380021016,1755479457759,-1579.6,0.00013698,2]
[380021017,1755479457769,-151.0,0.00013698,2]
[380021018,1755479457781,-400.0,0.00013698,2]
[380021019,1755479457790,-400.0,0.00013698,2]
[380021020,1755479457799,-151.0,0.00013698,2]
[380021021,1755479457808,-400.0,0.00013698,2]
[380021022,1755479457819,-2175.2,0.00013698,2]
[380021023,1755479457828,-1838.0,0.00013698,2]
[380021024,1755479457837,-2057.1,0.00013698,2]
[380021025,1755479457847,-2056.01,0.00013698,2]
[380021026,1755479457856,-478.26,0.00013698,2]
[380021027,1755479457866,-400.0,0.00013698,2]
[380021028,1755479457875,-151.0,0.00013698,2]
[380021029,1755479457884,-400.0,0.00013698,2]
[380021030,1755479457893,-400.0,0.00013698,2]
[380021031,1755479457903,-400.0,0.00013698,2]
[380021032,1755479457914,-400.0,0.00013698,2]
[380021033,1755479457924,-151.0,0.00013698,2]
[380021034,1755479457934,-151.0,0.00013698,2]
[380021035,1755479457945,-395.250391,0.00013698,2]
[380021036,1755479457956,-400.0,0.00013698,2]
[380021037,1755479457966,-753.77,0.00013698,2]
[380021038,1755479457975,-753.77,0.00013698,2]
[380021039,1755479457985,-400.0,0.00013698,2]
[380021040,1755479457994,-151.0,0.00013698,2]
[380021041,1755479458003,-753.77,0.00013698,2]
[380021042,1755479458012,-753.77,0.00013698,2]
[380021043,1755479458021,-753.77,0.00013698,2]
[380021044,1755479458030,-400.0,0.00013698,2]
[380021045,1755479458041,-400.0,0.00013698,2]
[380021046,1755479458051,-753.77,0.00013698,2]
[380021047,1755479458061,-151.0,0.00013698,2]
[380021048,1755479458070,-753.77,0.00013698,2]
[380021049,1755479458079,-395.250391,0.00013698,2]
[380021050,1755479458089,-350.173881,0.00013698,2]
[380021051,1755479458101,-753.77,0.00013698,2]
[380021052,1755479458112,-1765.63,0.00013698,2]
[380021053,1755479458122,-753.77,0.00013698,2]
[380021054,1755479458131,-753.77,0.00013698,2]
[380021055,1755479458140,-753.77,0.00013698,2]
[380021056,1755479458149,-757.30883,0.00013698,2]
[380021057,1755479458159,-151.82547,0.00013698,2]
[380021058,1755479458168,-753.77,0.00013698,2]
[380021059,1755479458177,-400.0,0.00013698,2]
[380021060,1755479458186,-1367.67,0.00013698,2]
[380021061,1755479458195,-753.77,0.00013698,2]
[380021062,1755479458205,-583.742671,0.00013698,2]
[380021063,1755479458214,-753.77,0.00013698,2]
[380021064,1755479458224,-753.77,0.00013698,2]
[380021065,1755479458233,-753.77,0.00013698,2]
[380021066,1755479458243,-291.3260148,0.00013698,2]
[380021067,1755479458252,-400.0,0.00013698,2]
[380021068,1755479458262,-753.77,0.00013698,2]
[380021069,1755479458271,-350.173881,0.00013698,2]
[380021070,1755479458281,-834.28,0.00013698,2]
[380021071,1755479458290,-400.0,0.00013698,2]
[380021072,1755479458299,-753.77,0.00013698,2]
[380021073,1755479458309,-753.77,0.00013698,2]
[380021074,1755479458318,-717.89,0.00013698,2]
[380021075,1755479458328,-753.77,0.00013698,2]
[380021076,1755479458337,-753.77,0.00013698,2]
[380021077,1755479458347,-618.05,0.00013698,2]
[380021078,1755479458356,-3211.94,0.00013698,2]
[380021079,1755479458366,-753.77,0.00013698,2]
[380021080,1755479458375,-753.77,0.00013698,2]
[380021081,1755479458384,-151.0,0.00013698,2]
[380021082,1755479458394,-400.0,0.00013698,2]
[380021083,1755479458403,-753.99,0.00013698,2]
[380021084,1755479458412,-757.30883,0.00013698,2]
[380021085,1755479458421,-583.742671,0.00013698,2]
[380021086,1755479458431,-400.0,0.00013698,2]
[380021087,1755479458440,-1035.55,0.00013698,2]
[380021088,1755479458449,-151.82547,0.00013698,2]
[380021089,1755479458459,-151.0,0.00013698,2]
[380021090,1755479458468,-400.0,0.00013698,2]
[380021091,1755479458477,-400.0,0.00013698,2]
[380021092,1755479458488,-400.0,0.00013698,2]
[380021093,1755479458497,-3056.11,0.00013698,2]
[380021094,1755479458506,-400.0,0.00013698,2]
[380021095,1755479458516,-400.0,0.00013698,2]
[380021096,1755479458525,-3804.4,0.00013698,2]
[380021097,1755479458534,-400.0,0.00013698,2]
[380021098,1755479458543,-151.0,0.00013698,2]
[380021099,1755479458553,-3061.71,0.00013698,2]
[380021100,1755479458563,-400.0,0.00013698,2]
[380021101,1755479458573,-423.24,0.00013698,2]
[380021102,1755479458583,-1210.08,0.00013698,2]
[380021103,1755479458594,-400.77,0.00013698,2]
[380021104,1755479458604,-400.0,0.00013698,2]
[380021105,1755479458614,-2065.97,0.00013698,2]
[380021106,1755479458625,-407.7,0.00013698,2]
[380021107,1755479458635,-400.0,0.00013698,2]
[380021108,1755479458645,-265.158665,0.00013698,2]
[380021109,1755479458655,-1681.02,0.00013698,2]
[380021110,1755479458666,-151.0,0.00013698,2]
[380021111,1755479458676,-791.77,0.00013698,2]
[380021112,1755479458686,-728.87,0.00013698,2]
[380021113,1755479458695,-400.0,0.00013698,2]
[380021114,1755479458704,-704.83,0.00013698,2]
[380021115,1755479458713,-265.158665,0.00013698,2]
[380021116,1755479458723,-400.99837697,0.00013698,2]
[380021117,1755479458733,-993.0,0.00013698,2]
[380021118,1755479458743,-4444.34,0.00013698,2]
[380021119,1755479458753,-2489.5,0.00013698,2]
[380021120,1755479458762,-151.0,0.00013698,2]
[380021121,1755479458775,-400.0,0.00013698,2]
[380021122,1755479458784,-400.0,0.00013698,2]
[380021123,1755479458793,-817.03,0.00013698,2]
[380021124,1755479458802,-206.881719,0.00013698,2]
[380021125,1755479458811,-400.0,0.00013698,2]
[380021126,1755479458820,-400.0,0.00013698,2]
[380021127,1755479458830,-400.0,0.00013698,2]
[380021128,1755479458841,-812.27,0.00013698,2]
[380021129,1755479458851,-400.0,0.00013698,2]
[380021130,1755479458860,-2824.72,0.00013698,2]
[380021131,1755479458869,-400.0,0.00013698,2]
[380021132,1755479458879,-1481.99,0.00013698,2]
[380021133,1755479458888,-3138.77,0.00013698,2]
[380021134,1755479458897,-400.0,0.00013698,2]
[380021135,1755479458906,-2773.27,0.00013698,2]
[380021136,1755479458915,-951.09,0.00013698,2]
[380021137,1755479458924,-2470.33,0.00013698,2]
[380021138,1755479458933,-733.13,0.00013698,2]
[380021139,1755479458942,-400.0,0.00013698,2]
[380021140,1755479458951,-400.0,0.00013698,2]
[380021141,1755479458961,-400.0,0.00013698,2]
[380021142,1755479458970,-400.0,0.00013698,2]
[380021143,1755479458979,-1480.32,0.00013698,2]
[380021144,1755479458988,-3599.09,0.00013698,2]
[380021145,1755479458997,-400.0,0.00013698,2]
[380021146,1755479459006,-418.49564565,0.00013698,2]
[380021147,1755479459016,-622.23,0.00013698,2]
[380021148,1755479459025,-400.0,0.00013698,2]
[380021149,1755479459034,-994.59,0.00013698,2]
[380021150,1755479459043,-400.24835168,0.00013698,2]
[380021151,1755479459052,-151.0,0.00013698,2]
[380021152,1755479459061,-2453.84,0.00013698,2]
[380021153,1755479459071,-2292.23,0.00013698,2]
[380021154,1755479459080,-2292.23,0.00013698,2]
[380021155,1755479459090,-1393.48,0.00013698,2]
[380021156,1755479459100,-400.0,0.00013698,2]
[380021157,1755479459109,-2292.23,0.00013698,2]
[380021158,1755479459119,-2292.23,0.00013698,2]
[380021159,1755479459129,-206.881719,0.00013698,2]
[380021160,1755479459138,-1276.26,0.00013698,2]
[380021161,1755479459148,-2292.23,0.00013698,2]
[380021162,1755479459157,-2292.23,0.00013698,2]
[380021163,1755479459166,-2292.23,0.00013698,2]
[380021164,1755479459175,-400.0,0.00013698,2]
[380021165,1755479459184,-2292.23,0.00013698,2]
[380021166,1755479459194,-2292.23,0.00013698,2]
[380021167,1755479459203,-852.516069,0.00013698,2]
[380021168,1755479459213,-2292.23,0.00013698,2]
[380021169,1755479459222,-2292.23,0.00013698,2]
[380021170,1755479459232,-2292.23,0.00013698,2]
[380021171,1755479459241,-1153.52,0.00013698,2]
[380021172,1755479459250,-2292.23,0.00013698,2]
[380021173,1755479459260,-400.0,0.00013698,2]
[380021174,1755479459269,-3072.57,0.00013698,2]
[380021175,1755479459278,-2292.23,0.00013698,2]
[380021176,1755479459287,-2292.23,0.00013698,2]
[380021177,1755479459296,-1499.45,0.00013698,2]
[380021178,1755479459306,-2292.23,0.00013698,2]
[380021179,1755479459315,-2292.23,0.00013698,2]
[380021180,1755479459324,-400.0,0.00013698,2]
[380021181,1755479459333,-403.43007622,0.00013698,2]
[380021182,1755479459343,-2292.23,0.00013698,2]
[380021183,1755479459352,-434.4,0.00013698,2]
[380021184,1755479459482,-2292.23,0.00013698,2]
[380021185,1755479459502,-2292.23,0.00013698,2]
[380021186,1755479459511,-2292.23,0.00013698,2]
[380021187,1755479459521,-852.516069,0.00013698,2]
[380021188,1755479459530,-2292.23,0.00013698,2]
[380021189,1755479459539,-2292.23,0.00013698,2]
[380021190,1755479459548,-2292.31332638,0.00013698,2]
[380021191,1755479459557,-2130.91,0.00013698,2]
[380021192,1755479459567,-400.0,0.00013698,2]
[380021193,1755479459576,-400.0,0.00013698,2]
[380021194,1755479459585,-442.240825,0.00013698,2]
[380021195,1755479459594,-4372.03,0.00013698,2]
[380021196,1755479459603,-1302.17,0.00013698,2]
[380021197,1755479459613,-709.77,0.00013698,2]
[380021198,1755479459623,-400.0,0.00013698,2]
[380021199,1755479459632,-400.0,0.00013698,2]
[380021200,1755479459641,-400.0,0.00013698,2]
[380021201,1755479459650,-151.0,0.00013698,2]
[380021202,1755479459661,-1227.49,0.00013698,2]
[380021203,1755479459670,-442.240825,0.00013698,2]
[380021204,1755479459679,-400.0,0.00013698,2]
[380021205,1755479459689,-400.0,0.00013698,2]
[380021206,1755479459698,-400.0,0.00013698,2]
[380021207,1755479459708,-514.593126,0.00013698,2]
[380021208,1755479459718,-1371.25,0.00013698,2]
[380021209,1755479459727,-2297.0,0.00013698,2]
[380021210,1755479459737,-400.0,0.00013698,2]
[380021211,1755479459746,-532.71,0.00013698,2]
[380021212,1755479459755,-400.0,0.00013698,2]
[380021213,1755479459765,-400.0,0.00013698,2]
[380021214,1755479459777,-1572.79,0.00013698,2]
[380021215,1755479459786,-553.25,0.00013698,2]
[380021216,1755479459795,-400.0,0.00013698,2]
[380021217,1755479459804,-400.0,0.00013698,2]
[380021218,1755479459814,-173.875101,0.00013698,2]
[380021219,1755479459825,-400.0,0.00013698,2]
[380021220,1755479459835,-514.593126,0.00013698,2]
[380021221,1755479459844,-400.0,0.00013698,2]
[380021222,1755479459854,-151.0,0.00013698,2]
[380021223,1755479459863,-151.0,0.00013698,2]
[380021224,1755479459873,-400.0,0.00013698,2]
[380021225,1755479459882,-4040.6,0.00013698,2]
[380021226,1755479459892,-2059.27,0.00013698,2]
[380021227,1755479459901,-1477.11,0.00013698,2]
[380021228,1755479459911,-400.0,0.00013698,2]
[380021229,1755479459920,-2534.39,0.00013698,2]
[380021230,1755479459929,-173.875101,0.00013698,2]
[380021231,1755479459940,-157.461823,0.00013698,2]
[380021232,1755479459950,-151.0,0.00013698,2]
[380021233,1755479459959,-1004.54,0.00013698,2]
[380021234,1755479459968,-592.15,0.00013698,2]
[380021235,1755479459978,-400.0,0.00013698,2]
[380021236,1755479459987,-1726.59,0.00013698,2]
[380021237,1755479459996,-400.0,0.00013698,2]
[380021238,1755479460006,-858.82,0.00013698,2]
[380021239,1755479460015,-813.59,0.00013698,2]
[380021240,1755479460025,-236.368446,0.00013698,2]
[380021241,1755479460034,-400.0,0.00013698,2]
[380021242,1755479460044,-1022.72,0.00013698,2]
[380021243,1755479460054,-157.461823,0.00013698,2]
[380021244,1755479460064,-400.0,0.00013698,2]
[380021245,1755479460074,-400.0,0.00013698,2]
[380021246,1755479460084,-2318.61,0.00013698,2]
[380021247,1755479460094,-400.0,0.00013698,2]
[380021248,1755479460104,-1979.06,0.00013698,2]
[380021249,1755479460114,-400.0,0.00013698,2]
[380021250,1755479460124,-746.69,0.00013698,2]
[380021251,1755479460134,-400.0,0.00013698,2]
[380021252,1755479460144,-404.93949914,0.00013698,2]
[380021253,1755479460153,-400.0,0.00013698,2]
[380021254,1755479460163,-1575.59,0.00013698,2]
[380021255,1755479460172,-400.0,0.00013698,2]
[380021256,1755479460182,-1327.53,0.00013698,2]
[380021257,1755479460193,-541.43,0.00013698,2]
[380021258,1755479460203,-1527.83,0.00013698,2]
[380021259,1755479460214,-626.06,0.00013698,2]
[380021260,1755479460224,-1986.87,0.00013698,2]
[380021261,1755479460234,-400.0,0.00013698,2]
[380021262,1755479460245,-1804.31,0.00013698,2]
[380021263,1755479460254,-1080.89,0.00013698,2]
[380021264,1755479460264,-400.0,0.00013698,2]
[380021265,1755479460275,-2309.07,0.00013698,2]
[380021266,1755479460285,-400.0,0.00013698,2]
[380021267,1755479460295,-151.0,0.00013698,2]
[380021268,1755479460305,-1186.88,0.00013698,2]
[380021269,1755479460315,-1092.3,0.00013698,2]
[380021270,1755479460325,-400.0,0.00013698,2]
[380021271,1755479460336,-589.25,0.00013698,2]
[380021272,1755479460346,-400.0,0.00013698,2]
[380021273,1755479460356,-151.0,0.00013698,2]
[380021274,1755479460368,-1854.07,0.00013698,2]
[380021275,1755479460378,-693.77,0.00013698,2]
[380021276,1755479460387,-709.12,0.00013698,2]
[380021277,1755479460398,-400.0,0.00013698,2]
[380021278,1755479460408,-1563.41,0.00013698,2]
[380021279,1755479460417,-3566.05,0.00013698,2]
[380021280,1755479460428,-1988.35,0.00013698,2]
[380021281,1755479460438,-2798.64,0.00013698,2]
[380021282,1755479460448,-622.24,0.00013698,2]
[380021283,1755479460457,-400.0,0.00013698,2]
[380021284,1755479460467,-1467.52,0.00013698,2]
[380021285,1755479460478,-400.0,0.00013698,2]
[380021286,1755479460488,-400.0,0.00013698,2]
[380021287,1755479460497,-400.0,0.00013698,2]
[380021288,1755479460507,-681.32,0.00013698,2]
[380021289,1755479460517,-817.14,0.00013698,2]
[380021290,1755479460527,-400.0,0.00013698,2]
[380021291,1755479460539,-602.31,0.00013698,2]
[380021292,1755479460550,-1057.18,0.00013698,2]
[380021293,1755479460566,-400.0,0.00013698,2]
[380021294,1755479460578,-3752.16,0.00013698,2]
[380021295,1755479460592,-4096.74,0.00013698,2]
[380021296,1755479460602,-1557.92,0.00013698,2]
[380021297,1755479460612,-400.0,0.00013698,2]
[380021298,1755479460622,-400.0,0.00013698,2]
[380021299,1755479460631,-500.0,0.00013698,2]
[380021300,1755479460641,-500.0,0.00013698,2]
[380021301,1755479460650,-500.0,0.00013698,2]
[380021302,1755479460660,-151.0,0.00013698,2]
[380021303,1755479460670,-500.0,0.00013698,2]
[380021304,1755479460680,-500.0,0.00013698,2]
[380021305,1755479460690,-500.0,0.00013698,2]
[380021306,1755479460700,-500.0,0.00013698,2]
[380021307,1755479460710,-400.0,0.00013698,2]
[380021308,1755479460721,-500.0,0.00013698,2]
[380021309,1755479460731,-400.0,0.00013698,2]
[380021310,1755479460742,-3813.29,0.00013698,2]
[380021311,1755479460752,-400.0,0.00013698,2]
[380021312,1755479460763,-400.0,0.00013698,2]
[380021313,1755479460777,-381.73026607,0.00013698,2]
[380021314,1755479460787,-475.33,0.00013698,2]
[380021315,1755479460796,-510.75,0.00013698,2]
[380021316,1755479460807,-1465.22,0.00013698,2]
[380021317,1755479460819,-2467.47,0.00013698,2]
[380021318,1755479460829,-400.0,0.00013698,2]
[380021319,1755479460839,-1224.0,0.00013698,2]
[380021320,1755479460849,-400.0,0.00013698,2]
[380021321,1755479460859,-400.0,0.00013698,2]
[380021322,1755479460870,-3853.38,0.00013698,2]
[380021323,1755479460881,-400.0,0.00013698,2]
[380021324,1755479460904,-400.0,0.00013698,2]
[380021325,1755479460933,-435.53,0.00013698,2]
[380021326,1755479460966,-400.0,0.00013698,2]
[380021327,1755479460978,-400.0,0.00013698,2]
[380021328,1755479460988,-400.0,0.00013698,2]
[380021329,1755479460997,-1320.64,0.00013698,2]
[380021330,1755479461008,-400.0,0.00013698,2]
[380021331,1755479461018,-2917.38,0.00013698,2]
[380021332,1755479461028,-400.0,0.00013698,2]
[380021333,1755479461038,-737.56,0.00013698,2]
[380021334,1755479461048,-807.28,0.00013698,2]
[380021335,1755479461058,-1211.61,0.00013698,2]
[380021336,1755479461068,-574.3,0.00013698,2]
[380021337,1755479461077,-1464.41,0.00013698,2]
[380021338,1755479461087,-2255.2,0.00013698,2]
[380021339,1755479461102,-400.0,0.00013698,2]
[380021340,1755479461112,-151.0,0.00013698,2]
[380021341,1755479461122,-400.0,0.00013698,2]
[380021342,1755479461132,-3339.12,0.00013698,2]
[380021343,1755479461141,-151.0,0.00013698,2]
[380021344,1755479461151,-151.0,0.00013698,2]
[380021345,1755479461160,-400.0,0.00013698,2]
[380021346,1755479461170,-500.0,0.00013698,2]
[380021347,1755479461180,-500.0,0.00013698,2]
[380021348,1755479461190,-500.0,0.00013698,2]
[380021349,1755479461200,-500.0,0.00013698,2]
[380021350,1755479461212,-500.0,0.00013698,2]
[380021351,1755479461222,-500.0,0.00013698,2]
[380021352,1755479461232,-500.0,0.00013698,2]
[380021353,1755479461242,-500.0,0.00013698,2]
[380021354,1755479461252,-500.0,0.00013698,2]
[380021355,1755479461262,-500.0,0.00013698,2]
[380021356,1755479461272,-500.0,0.00013698,2]
[380021357,1755479461283,-500.0,0.00013698,2]
[380021358,1755479461294,-151.0,0.00013698,2]
[380021359,1755479461304,-510.44661737,0.00013698,2]
[380021360,1755479461315,-500.0,0.00013698,2]
[380021361,1755479461325,-500.0,0.00013698,2]
[380021362,1755479461334,-500.0,0.00013698,2]
[380021363,1755479461345,-2293.0,0.00013698,2]
[380021364,1755479461356,-500.0,0.00013698,2]
[380021365,1755479461366,-500.0,0.00013698,2]
[380021366,1755479461376,-500.0,0.00013698,2]
[380021367,1755479461386,-400.0,0.00013698,2]
[380021368,1755479461395,-500.0,0.00013698,2]
[380021369,1755479461405,-551.68041839,0.00013698,2]
[380021370,1755479461415,-795.57,0.00013698,2]
[380021371,1755479461425,-500.0,0.00013698,2]
[380021372,1755479461434,-950.56,0.00013698,2]
[380021373,1755479461445,-500.0,0.00013698,2]
[380021374,1755479461455,-151.0,0.00013698,2]
[380021375,1755479461464,-1580.53,0.00013698,2]
[380021376,1755479461474,-400.0,0.00013698,2]
[380021377,1755479461484,-400.0,0.00013698,2]
[380021378,1755479461495,-1657.01,0.00013698,2]
[380021379,1755479461505,-810.391604,0.00013698,2]
[380021380,1755479461515,-400.0,0.00013698,2]
[380021381,1755479461524,-748.74,0.00013698,2]
[380021382,1755479461534,-500.0,0.00013698,2]
[380021383,1755479461544,-3979.91,0.00013698,2]
[380021384,1755479461553,-400.0,0.00013698,2]
[380021385,1755479461563,-500.0,0.00013698,2]
[380021386,1755479461572,-500.0,0.00013698,2]
[380021387,1755479461581,-500.0,0.00013698,2]
[380021388,1755479461590,-500.0,0.00013698,2]
[380021389,1755479461600,-1399.73,0.00013698,2]
[380021390,1755479461609,-500.0,0.00013698,2]
[380021391,1755479461618,-500.0,0.00013698,2]
[380021392,1755479461628,-500.0,0.00013698,2]
[380021393,1755479461637,-500.0,0.00013698,2]
[380021394,1755479461647,-500.0,0.00013698,2]
[380021395,1755479461656,-810.391604,0.00013698,2]
[380021396,1755479461666,-500.0,0.00013698,2]
[380021397,1755479461675,-500.0,0.00013698,2]
[380021398,1755479461685,-400.0,0.00013698,2]
[380021399,1755479461694,-500.0,0.00013698,2]
[380021400,1755479462057,-500.0,0.00013698,2]
[380021401,1755479462068,-754.23,0.00013698,2]
[380021402,1755479462078,-500.0,0.00013698,2]
[380021403,1755479462087,-477.92,0.00013698,2]
[380021404,1755479462096,-400.0,0.00013698,2]
[380021405,1755479462106,-400.0,0.00013698,2]
[380021406,1755479462115,-2711.92,0.00013698,2]
[380021407,1755479462125,-400.0,0.00013698,2]
[380021408,1755479462134,-598.39,0.00013698,2]
[380021409,1755479462144,-2020.44,0.00013698,2]
[380021410,1755479462153,-1917.25,0.00013698,2]
[380021411,1755479462162,-3720.69,0.00013698,2]
[380021412,1755479462172,-400.0,0.00013698,2]
[380021413,1755479462181,-400.0,0.00013698,2]
[380021414,1755479462191,-400.0,0.00013698,2]
[380021415,1755479462200,-493.52,0.00013698,2]
[380021416,1755479462210,-250.664092,0.00013698,2]
[380021417,1755479462220,-400.0,0.00013698,2]
[380021418,1755479462230,-4542.63,0.00013698,2]
[380021419,1755479462240,-586.12,0.00013698,2]
[380021420,1755479462250,-1153.22,0.00013698,2]
[380021421,1755479462259,-400.0,0.00013698,2]
[380021422,1755479462269,-400.0,0.00013698,2]
[380021423,1755479462278,-250.664092,0.00013698,2]
[380021424,1755479462288,-400.0,0.00013698,2]
[380021425,1755479462297,-4003.99,0.00013698,2]
[380021426,1755479462307,-3753.46,0.00013698,2]
[380021427,1755479462316,-3765.21,0.00013698,2]
[380021428,1755479462326,-400.0,0.00013698,2]
[380021429,1755479462335,-400.0,0.00013698,2]
[380021430,1755479462346,-1202.71,0.00013698,2]
[380021431,1755479462356,-522.16,0.00013698,2]
[380021432,1755479462366,-400.0,0.00013698,2]
[380021433,1755479462375,-400.0,0.00013698,2]
[380021434,1755479462385,-661.6,0.00013698,2]
[380021435,1755479462395,-400.0,0.00013698,2]
[380021436,1755479462404,-520.18,0.00013698,2]
[380021437,1755479462414,-448.81,0.00013698,2]
[380021438,1755479462423,-2519.24,0.00013698,2]
[380021439,1755479462433,-500.0,0.00013698,2]
[380021440,1755479462443,-500.0,0.00013698,2]
[380021441,1755479462454,-400.0,0.00013698,2]
[380021442,1755479462464,-500.0,0.00013698,2]
[380021443,1755479462474,-400.0,0.00013698,2]
[380021444,1755479462485,-500.0,0.00013698,2]
[380021445,1755479462494,-505.674031,0.00013698,2]
[380021446,1755479462504,-877.65,0.00013698,2]
[380021447,1755479462513,-400.0,0.00013698,2]
[380021448,1755479462523,-921.49,0.00013698,2]
[380021449,1755479462532,-2100.18,0.00013698,2]
[380021450,1755479462542,-400.0,0.00013698,2]
[380021451,1755479462552,-2992.3,0.00013698,2]
[380021452,1755479462562,-400.0,0.00013698,2]
[380021453,1755479462571,-2210.71,0.00013698,2]
[380021454,1755479462581,-641.15,0.00013698,2]
[380021455,1755479462591,-400.0,0.00013698,2]
[380021456,1755479462601,-573.64,0.00013698,2]
[380021457,1755479462611,-621.88,0.00013698,2]
[380021458,1755479462621,-400.0,0.00013698,2]
[380021459,1755479462630,-400.0,0.00013698,2]
[380021460,1755479462640,-151.0,0.00013698,2]
[380021461,1755479462650,-190.28053606,0.00013698,2]
[380021462,1755479462660,-1654.55,0.00013698,2]
[380021463,1755479462670,-400.0,0.00013698,2]
[380021464,1755479462680,-1050.9,0.00013698,2]
[380021465,1755479462689,-400.0,0.00013698,2]
[380021466,1755479462699,-400.0,0.00013698,2]
[380021467,1755479462709,-3098.46,0.00013698,2]
[380021468,1755479462719,-705.6,0.00013698,2]
[380021469,1755479462727,-400.0,0.00013698,2]